Cogmind - Beta 13 @@@ ROGUE MODE // 2024.07.02 @ 03:15:52 Player: celerysam Result: Destroyed by G-47 Trooper with Particle Gun Performance ------------- Evolutions (2) 1000 Regions Visited (4) 800 Robots Destroyed (32) 160 Value Destroyed (859) 859 Prototype IDs (5) 100 Alien Tech Used (0) 0 Bonus (62) 62 TOTAL SCORE: 2981 Bonus ------- Follower Combat Kills 62 Cogmind --------- Core Integrity 0/550 Matter 280/300 Energy 208/265 System Corruption 4% Temperature Cool (9) Movement Rolling (105) Ox1 Location -8/Materials Parts ------- > --- POWER (2) -------- Improved Ion Engine > --- PROPULSION (4) --- Light Treads Carbon-fiber Leg VSS Leg Armored Wheel > --- UTILITY (3) ------ Visual Processing Unit Advanced ECM Suite System Shield > --- WEAPON (2) ------- Gatling Laser Katana > --- INVENTORY (5) ---- Improved Ion Engine Nuclear Core Thermal Generator Improved Heat Sink Mini Grenade Launcher Peak State ------------ > --- POWER ------------ Improved Ion Engine > --- PROPULSION ------- Light Treads Carbon-fiber Leg VSS Leg Armored Wheel > --- UTILITY ---------- Visual Processing Unit Advanced ECM Suite System Shield > --- WEAPON ----------- Gatling Laser Katana > --- INVENTORY -------- Improved Ion Engine Nuclear Core Thermal Generator Improved Heat Sink Mini Grenade Launcher [Rating: 28] Favorites ----------- Power Ion Engine Engine Ion Engine Power Core Light Nuclear Core Propulsion Aluminum Leg Treads Light Treads Leg Aluminum Leg Wheel Wheel Hover Unit Airjet Flight Unit Flight Unit Utility Small Storage Unit Device Structural Scanner Storage Small Storage Unit Processor Visual Processing Unit Hackware System Shield Protection Improved Utility Shielding Weapon Assault Rifle Energy Gun EM Pulse Gun Ballistic Gun Assault Rifle Ballistic Cannon Light Cannon Impact Weapon Hammer Slashing Weapon Katana Build | -11 -10 -9 -9 -8 ------- Run | Yrd Mat Mat Min Mat Slots Evolved 4 | . . 2 . 2 Power 1 | . . . . 1 Propulsion 2 | . . 2 . . Utility 1 | . . . . 1 Weapon . | . . . . . Parts Attached 49 | 5 5 1 2 36 Power 10 | 1 1 . . 8 Engine 7 | 1 1 . . 5 Core 3 | . . . . 3 Reactor . | . . . . . Propulsion 18 | 2 2 . 2 12 Treads 3 | . . . 2 1 Leg 8 | . 2 . . 6 Wheel 3 | 2 . . . 1 Hover 2 | . . . . 2 Flight 2 | . . . . 2 Utility 8 | 1 1 . . 6 Device 4 | . 1 . . 3 Storage 1 | 1 . . . . Processor 1 | . . . . 1 Hackware 1 | . . . . 1 Protection 1 | . . . . 1 Artifact . | . . . . . Weapon 13 | 1 1 1 . 10 Energy Gun 8 | . 1 1 . 6 Energy Cannon . | . . . . . Ballistic Gun 2 | 1 . . . 1 Ballistic Cannon 1 | . . . . 1 Launcher . | . . . . . Special Weapon . | . . . . . Impact Weapon 1 | . . . . 1 Slashing Weapon 1 | . . . . 1 Piercing Weapon . | . . . . . Special Melee Weapon . | . . . . . Unidentified Prototypes 3 | . . . . 3 Parts Lost 17 | . 3 . . 14 Power 5 | . 1 . . 4 Propulsion 8 | . 2 . . 6 Utility 2 | . . . . 2 Weapon 2 | . . . . 2 Highest Loss Streak 4 | . 3 . . 4 To Critical Strikes . | . . . . . Average Slot Usage (%) 80 | . 86 . 77 79 Engine 9 | . 13 . 11 7 Core 1 | . . . . 2 Treads 3 | . . . . 5 Leg 17 | . 3 . 22 20 Wheel 5 | . 22 . . 1 Flight 1 | . . . . 1 Device 7 | . 9 . 11 5 Storage 8 | . 14 . 11 5 Processor 4 | . . . . 8 Hackware 1 | . . . . 2 Energy Gun 9 | . 9 . 11 8 Ballistic Gun 5 | . 14 . 11 . Impact Weapon 1 | . . . . 3 Slashing Weapon 1 | . . . . 2 Naked Turns . | . . . . . Heaviest Build 22 | 10 13 15 15 22 Greatest Support 40 | 20 20 20 20 40 Greatest Overweight (x) 2 | 1 2 . . 2 Average Overweight (x) . | . . . . . Largest Inventory Capacity 8 | 8 8 8 8 8 Average Capacity 7 | 7 8 8 8 6 Most Carried 8 | 7 8 5 7 8 Average Carried 6 | 3 6 5 6 6 Final Capacity 8 | 8 8 8 8 5 Final Carried 7 | 7 6 5 4 5 Class Distribution -------------------- 73% | Mutant 26% | Scavenger-Mutant Dominant Class ---------------- Mutant | -10/Materials Mutant | -9/Materials Mutant | -9/Mines Mutant | -8/Materials Resources | -11 -10 -9 -9 -8 ----------- Run | Yrd Mat Mat Min Mat Matter Collected 780 | 201 83 . 53 443 Remotely . | . . . . . Salvage Created 939 | . 125 . 45 769 Parts 52 | . 15 . 4 33 Haulers Intercepted 2 | . . . . 2 Recyclers Shooed 1 | . . . . 1 Parts Field Recycled . | . . . . . Retrieved Matter . | . . . . . Parts Self-Destructed . | . . . . . Prevented . | . . . . . Kills | -11 -10 -9 -9 -8 ------- Run | Yrd Mat Mat Min Mat Combat Hostiles Destroyed 29 | . 5 . 3 21 Melee 3 | . . . . 3 Guns 15 | . 5 . 3 7 Cannons 4 | . . . . 4 Classes Destroyed 5 | . 3 . . 2 Hauler 2 | . . . . 2 Watcher 1 | . 1 . . . Swarmer 14 | . 4 . 3 7 Grunt 12 | . 1 . . 11 Sentry 3 | . . . . 3 Best Kill Streak 5 | . 2 . 3 5 Combat Bots Only 5 | . 2 . 3 5 Max Kills in Single Turn 2 | . 2 . 2 2 Gunslinging . | . . . . . Exploded . | . . . . . Melee 1 | . . . . 1 Uniques/NPCs Destroyed . | . . . . . Combat | -11 -10 -9 -9 -8 -------- Run | Yrd Mat Mat Min Mat Hostile Shots Fired 297 | . 73 . 22 202 Missed 97 | . 24 . 9 64 Damage Taken 2662 | . 413 . 111 2138 Core 662 | . 91 . 18 553 Absorbed by Shields . | . . . . . Core Remaining (%) 86 | 100 63 . 95 . Volleys Fired 51 | . 13 . 6 32 Largest 2 | . 2 . 2 2 Hottest 100 | . 70 . 60 100 Shots Fired 81 | . 20 . 12 49 Gun 64 | . 20 . 12 32 Cannon 17 | . . . . 17 Launcher . | . . . . . Special . | . . . . . Kinetic 41 | . 13 . 6 22 Thermal 29 | . 7 . . 22 Explosive . | . . . . . Electromagnetic 11 | . . . 6 5 Robot Hit Streak 5 | . 5 . 3 5 Robot Miss Streak 5 | . 5 . 3 3 Penetration Max . | . . . . . Secondary Targets . | . . . . . Shots Hit Robots 97 | . 9 . 5 83 Core Hits 35 | . 7 . 3 25 Critical Kills 1 | . . . . 1 Critical Parts Destroyed 7 | . . . . 7 Critical Strikes 14 | . 1 . . 13 Burn 3 | . 1 . . 2 Blast 1 | . . . . 1 Smash 8 | . . . . 8 Sever 2 | . . . . 2 Melee Attacks 66 | . . . . 66 Impact 56 | . . . . 56 Slashing 10 | . . . . 10 Piercing . | . . . . . Sneak Attacks 2 | . . . . 2 Combat Hostiles . | . . . . . Follow-up Attacks . | . . . . . Damage Inflicted 2232 | . 137 . 68 2027 Guns 510 | . 123 . 68 319 Cannons 214 | . . . . 214 Explosions . | . . . . . Melee 1494 | . . . . 1494 Ramming 14 | . 14 . . . Kinetic 403 | . 99 . 44 260 Thermal 258 | . 24 . . 234 Explosive . | . . . . . Electromagnetic 63 | . . . 24 39 Impact 1136 | . . . . 1136 Slashing 358 | . . . . 358 Piercing . | . . . . . Highest Corruption 4 | . 1 . . 4 Average Corruption 3 | . 1 . . 4 Corruption Purged . | . . . . . Corruption Blocked . | . . . . . Effects 20 | . . . . 20 Message Errors 2 | . . . . 2 Matter Fused 5 | . . . . 5 Heat Flow Errors 1 | . . . . 1 Energy Discharges 4 | . . . . 4 Parts Rejected 2 | . . . . 2 Data Loss (minor) 1 | . . . . 1 Data Loss (major) 1 | . . . . 1 Misfires 1 | . . . . 1 Alerts 1 | . . . . 1 Weapon Failures 2 | . . . . 2 Overload Shots . | . . . . . Overflow Damage 219 | . . . . 219 Projectiles . | . . . . . Explosions . | . . . . . Melee 219 | . . . . 219 Knockbacks 15 | . . . . 15 Impact 7 | . . . . 7 Kinetic 4 | . . . . 4 Secondary 4 | . . . . 4 Self-Inflicted Damage 6 | . 6 . . . Shots . | . . . . . Rammed 4 | . 4 . . . Targets Rammed 4 | . 4 . . . Kicked . | . . . . . Crushed . | . . . . . Highest Temperature 256 | . 36 . . 256 Average Temperature 68 | . 17 . . 80 Received Heat Transfer 1104 | . 6 . . 1098 Siege Activations . | . . . . . Robots Corrupted . | . . . . . Combat Hostiles . | . . . . . Parts Fried 8 | . . . . 8 Impact Corruptions 10 | . . . . 10 Robots Melted . | . . . . . Combat Hostiles . | . . . . . Parts Melted 1 | . . . . 1 Heat Transferred 851 | . 148 . . 703 Parts Sabotaged . | . . . . . Parts Stolen . | . . . . . Parts Stripped . | . . . . . Power Chain Reactions . | . . . . . Alert | -11 -10 -9 -9 -8 ------- Run | Yrd Mat Mat Min Mat Peak Influence 251 | . 205 86 103 251 Initial 86 | . . 86 33 . Average 98 | . 98 86 85 110 Maximum Alert Level 1 | . 1 . . 1 Low Security (%) 93 | 100 86 100 100 92 Level 1 6 | . 13 . . 7 Level 2 . | . . . . . Level 3 . | . . . . . Level 4 . | . . . . . Level 5 . | . . . . . High Security . | . . . . . Max Security . | . . . . . Squads Dispatched 7 | . 1 . . 6 Investigation 2 | . . . . 2 Extermination . | . . . . . Reinforcement 2 | . 1 . . 1 Assault . | . . . . . Garrison 3 | . . . . 3 Intercept . | . . . . . Searches Triggered . | . . . . . Construction Impeded . | . . . . . Haulers Reinforced . | . . . . . Active Scanning Responses . | . . . . . Cargo Convoy Interrupts . | . . . . . Stealth | -11 -10 -9 -9 -8 --------- Run | Yrd Mat Mat Min Mat Distress Signals 2 | . . 1 . 1 Communications Jammed . | . . . . . Distress Signals . | . . . . . Times Spotted 51 | . 12 1 4 34 Peak Tracking Total 9 | . 4 2 4 9 Tactical Retreats 2 | . 2 . . . Traps | -11 -10 -9 -9 -8 ------- Run | Yrd Mat Mat Min Mat Traps Triggered 2 | . . . . 2 Indirectly . | . . . . . Trap Hack Attempts . | . . . . . Triggered . | . . . . . Disarmed . | . . . . . Reprogrammed . | . . . . . Reused . | . . . . . Traps Extracted . | . . . . . Installed . | . . . . . Triggered . | . . . . . Machines | -11 -10 -9 -9 -8 ---------- Run | Yrd Mat Mat Min Mat Machines Disabled 1 | . . . . 1 Max in Single Turn 1 | . . . . 1 Machines Repaired . | . . . . . Machines Dismantled . | . . . . . Machines Sabotaged . | . . . . . Overloaded Fab Kills . | . . . . . Hacking | -11 -10 -9 -9 -8 --------- Run | Yrd Mat Mat Min Mat Machines Accessed 3 | . 3 . . . Terminals 2 | . 2 . . . Fabricators . | . . . . . Repair Stations 1 | . 1 . . . Recycling Units . | . . . . . Scanalyzers . | . . . . . Garrison Access . | . . . . . Total Hacks 7 | . 7 . . . Successful 5 | . 5 . . . Failed 2 | . 2 . . . Catastrophic . | . . . . . Database Lockouts . | . . . . . Manual 1 | . 1 . . . Terminals 6 | . 6 . . . Fabricators . | . . . . . Repair Stations 1 | . 1 . . . Recycling Units . | . . . . . Scanalyzers . | . . . . . Garrison Access . | . . . . . Terminal Hacks 4 | . 4 . . . Prototype ID Bank 1 | . 1 . . . Alert Level 1 | . 1 . . . Zone Layout 2 | . 2 . . . Fabricator Hacks . | . . . . . Repair Station Hacks . | . . . . . Recycling Unit Hacks . | . . . . . Scanalyzer . | . . . . . Garrison Access Hacks . | . . . . . Unauthorized Hacks 1 | . 1 . . . Terminals . | . . . . . Fabricators . | . . . . . Repair Stations 1 | . 1 . . . Mechanics 1 | . 1 . . . Recycling Units . | . . . . . Scanalyzers . | . . . . . Garrison Access . | . . . . . Data Cores Recovered . | . . . . . Used . | . . . . . Hacking Detections 2 | . 2 . . . Full Trace Events . | . . . . . Feedback Events . | . . . . . Feedback Blocked . | . . . . . Robot Schematics Acquired . | . . . . . Robots Built . | . . . . . Authchips . | . . . . . Time . | . . . . . Total Robot Build Rating . | . . . . . Part Schematics Acquired . | . . . . . Parts Built . | . . . . . Authchips . | . . . . . Time . | . . . . . Total Part Build Rating . | . . . . . Parts Repaired . | . . . . . Time . | . . . . . Parts Recycled . | . . . . . Recycled Matter . | . . . . . Retrieved Matter . | . . . . . Retrieved Components . | . . . . . Parts Scanalyzed . | . . . . . Part Schematics Acquired . | . . . . . Parts Damaged . | . . . . . Bothacking | -11 -10 -9 -9 -8 ------------ Run | Yrd Mat Mat Min Mat Used RIF Installer . | . . . . . Robots Hacked . | . . . . . Non-combat . | . . . . . Combat . | . . . . . Robot Hacks Applied . | . . . . . Relay Couplers Released . | . . . . . Fabnet Peak Effective % . | . . . . . Robots Rewired . | . . . . . Allies Hacked . | . . . . . Hacks Repelled . | . . . . . Allies | -11 -10 -9 -9 -8 -------- Run | Yrd Mat Mat Min Mat Total Allies 3 | . . . 3 . Largest Group 3 | . . . 3 3 Highest-Rated Group 40 | . . . 40 40 Highest-Rated Ally 16 | . . . 16 16 Total Orders . | . . . . . Ally Attacks 16 | . . . . 16 Total Damage 191 | . . . . 191 Kills 2 | . . . . 2 Allies Corrupted . | . . . . . Allies Melted . | . . . . . Intel | -11 -10 -9 -9 -8 ------- Run | Yrd Mat Mat Min Mat Robot Analysis Total . | . . . . . Derelict Logs Recovered . | . . . . . Drone Launches . | . . . . . Drone Recoveries . | . . . . . Exploration | -11 -10 -9 -9 -8 ------------- Run | Yrd Mat Mat Min Mat Turns Passed 1749 | 54 336 6 420 933 Spaces Moved 1096 | 46 279 5 247 519 Core 26 | 14 11 . . 1 Treads 22 | . . . . 22 Legs 550 | . 26 5 247 272 Wheels 410 | 32 242 . . 136 Hover . | . . . . . Flight 88 | . . . . 88 Fastest Speed 37 | 50 80 120 120 37 Average Speed 101 | 81 87 120 120 101 Slowest Speed 160 | 100 150 120 120 160 Overloaded Moves . | . . . . . Propulsion Burnouts . | . . . . . Robots Hopped 1 | . . . . 1 Cave-ins Triggered . | . . . . . Exploration Rate (%) 26 | 5 46 2 37 41 Regions Visited 4 Branch Regions 1 Pre-discovered Areas . | . . . . . Known Exits Taken . | . . . . . Unknown Exits Taken 4 | 1 1 1 1 . Scrap Searched 1 | . . . 1 . Spaces Dug 1 | . . . . 1 Terrain Destroyed 1 | . . . . 1 Melee 1 | . . . . 1 Projectile . | . . . . . AOE . | . . . . . Terrain Rammed . | . . . . . Walls Destroyed . | . . . . . Machines Disabled . | . . . . . Actions | -11 -10 -9 -9 -8 --------- Run | Yrd Mat Mat Min Mat Total 1538 | 62 353 5 359 759 Wait 221 | . 46 . 102 73 Move 1090 | 45 278 4 246 517 Hop 1 | . . . . 1 Pick Up 36 | 12 5 . 2 17 Fast Attach 16 | . . . . 16 Attach 26 | 5 5 1 2 13 Detach 1 | . . . . 1 Swap 7 | . . . . 7 Drop 19 | . 2 . 1 16 Fire 51 | . 13 . 6 32 Melee 66 | . . . . 66 Ram 4 | . 4 . . . Kick . | . . . . . Crush . | . . . . . Escape Stasis . | . . . . . Rewire . | . . . . . Trap . | . . . . . Miscellaneous . | . . . . . Route ------- -11/Scrapyard -10/Materials (discovered 2 exits: [*Mat] / [*Min]) -9/Materials -9/Mines -8/Materials History --------- Turn | Location | Event 37 | -11/Scrapyard | Discovered new exit (range 16) 55 | -11/Scrapyard | Entered Materials 150 | -10/Materials | Discovered new exit (range 15) 311 | -10/Materials | Build established: Mutant 362 | -10/Materials | Lost 3 parts (1p2n) 369 | -10/Materials | Discovered new exit (range 8) 391 | -10/Materials | Entered another Materials area 391 | -9/Materials | Evolved 2 slots: Propulsion x2 394 | -9/Materials | Discovered new exit (range 3) 397 | -9/Materials | Entered Mines 626 | -9/Mines | Discovered new exit (range 11) 699 | -9/Mines | Assisted by bots powering up and referring to "LRC-V3" 817 | -9/Mines | Entered Materials 817 | -8/Materials | Accompanied by 3 allies 817 | -8/Materials | Evolved 2 slots: Power x1, Utility x1 938 | -8/Materials | Lost 3 allies 1308 | -8/Materials | Build established: Scavenger-Mutant 1416 | -8/Materials | Lost 3 parts (2n1u) 1441 | -8/Materials | Garrison activated, responded to threat 1444 | -8/Materials | Core integrity fell below 50% 1458 | -8/Materials | Lost 4 parts (1p2n1w) 1525 | -8/Materials | Core integrity fell below 20% 1750 | -8/Materials | Destroyed by G-47 Trooper with Particle Gun Last Messages --------------- 01599_ System corrupted: Heat flow error (+255). 01606_ Dropped Flight Unit. 01606_ Acquired Arm. Wheel. 01647_ System corrupted: Energy discharge (-82). 01676_ Sneak attack on U-05 Engineer. 01676_ Destroyed Lgt. Ion Engine. 01681_ W-25 Informer sends out distress signal. 01695_ Triggered Alarm Trap. 01695_ An alarm sounds. 01695_ ALERT: Alarm triggered, dispatching investigation squad. 01704_ Sneak attack on A-02 Transporter. 01704_ A-02 Transporter destroyed. 01707_ Acquired 36 matter. 01711_ K-01 Serf collects debris. 01712_ Critical hit (Burn: +37). 01715_ Acquired Adv. ECM Suite. 01717_ Dropped Particle Gun. 01722_ R-06 Scavenger collects Heat Sink. 01734_ System corrupted: Component data lost. 01749_ System corrupted: Energy discharge (-68). Map ----- +----------------------------------------------------+ | | | | | | | | | | | | | | | | | | | | | | | | | | | | | | | | | | | ???????????????############?????????????? | | ???????????????# ?????????????? | | ???????????????# #????????????? | | ???????????????? #????????????? | | ????????????????? "" #??########??? | | ???????????????????""" T" #### #??? | | ?????????????????????" "" # # """ !#??? | | ??????????????????????? # # """ #??? | | ??????????????###########@## + """ /#??? | | ????????? / # #??? | | ????????? # #??? | | ?????????? T !* """ ###g#######+#??? | | ?????????? !* """ !!# #? #??? | | ??????????????! """ ! # [ #? #??? | | ?????????????? # g #? #??? | | ?????????????? # ] ## #??? | | ?????????????? ##### ## ## #??? | | ??????????????# #????#+?# ! ## #??? | | ??????????????# #???????# ## #??? | | ????????????? +???????# + #??? | | ??????????????# #???????# # #??? | | ??????????????# #???????#####+#### #??? | | ??????????#####+#####????????# #??? | | ??????????# #????????#=* #??? | | ??????????# ##########!! #??? | | ??????????# / !!% #??? | | ??????????# ########## ### ###? | | ??????????# #????????# #?# # | | ########### #????????# #?#! [[!!# | | / #????????# #?#!![[!!# | | ########### #????????# #?######## | | ??????????###########????????# #????????? | | ?????????????????????????????# #????????? | +----------------------------------------------------+ Best States ------------- Heat Dissipation 45 Energy Generation 19 Energy Capacity 310 Matter Stores 300 Matter Capacity 300 Sight Range 18 Terrain Scan Density 10 Utility Shielding 66 Evasion (%) 62 Recoil Reduction 1 Defensive Hacking 10 Item Schematics ----------------- None Robot Schematics ------------------ None Fabricated ------------ Nothing Alien Tech Used ----------------- None Achievements -------------- None Challenges ------------ None Game ------ Seed InsulationSignalLance Manual? 0 Play Time 00:20:35 Cumulative 77.2 hours Start 2024.07.02 @ 02:54:52 End 2024.07.02 @ 03:15:52 Sessions 1 Manual Loads 0 Difficulty Rogue Special Mode None Game No. 115 Rogue 115 Adventurer 0 Explorer 0 Win Type - Total 0 Types 0/0/0/0/0/0/0/0/0 Lore% 36 Gallery% 52 Achievement% 34 Wizard Run 0 Options --------- Layout 0 ASCII 0 Keyboard 0 Movement Mouse Keybinds 0 Fullscreen 1 Font 24/Smallcaps Map View 76x50 Zoom Use 0% Tactical HUD 1 Map Filters NONE Filters NONE Steam 1 RUN: 3a232713-2790-4b25-9d83-50cc70627291